bitfinex-derivatives/quotes_BNBF0:USTF0_20250302
["timestamp","ask_amount","ask_price","bid_price","bid_amount"]
[1740939828365,0.27872563,630.12,629.0,1.17647357]
[1740939828561,1.24672563,630.12,629.0,1.17647357]
[1740939828761,0.27872563,630.11,629.0,1.17647357]
[1740939829566,0.27872563,630.11,628.81,1.65878189]
[1740939829761,0.27872563,630.11,628.82,0.31805604]
[1740939830763,0.697,630.1,628.82,0.31805604]
[1740939830967,0.27872563,630.09,628.82,0.31805604]
[1740939832372,0.2786099,630.08,628.82,0.31805604]
[1740939832563,0.2786099,630.07,628.82,0.31805604]
[1740939832767,0.697,630.1,628.82,0.31805604]
[1740939832768,0.2786099,630.06,628.82,0.31805604]
[1740939832967,0.2786099,630.09,628.82,0.31805604]
[1740939833165,0.2786099,630.08,628.82,0.31805604]
[1740939833368,0.697,630.1,628.82,0.31805604]
[1740939833369,0.2786099,630.07,628.82,0.31805604]
[1740939833565,0.2786099,630.09,628.82,0.31805604]
[1740939834770,0.27859952,630.08,628.82,0.31805604]
[1740939834967,0.27859952,630.07,628.82,0.31805604]
[1740939835170,0.27859952,630.06,628.82,0.31805604]
[1740939835472,0.27859952,630.05,628.82,0.31805604]
[1740939835772,0.27859952,630.04,628.82,0.31805604]
[1740939836673,0.59603968,630.04,628.82,0.31805604]
[1740939836972,0.27859952,630.03,628.82,0.31805604]
[1740939837374,0.31745023,630.02,628.82,0.31805604]
[1740939837568,0.27859952,630.01,628.82,0.31805604]
[1740939838274,0.59605479,630.01,628.82,0.31805604]
[1740939838474,0.27859952,630.0,628.82,0.31805604]
[1740939839373,0.098,629.99,628.82,0.31805604]
[1740939839574,0.27859952,629.98,628.82,0.31805604]
[1740939842376,0.27875257,629.97,628.82,0.31805604]
[1740939842571,0.098,629.99,628.82,0.31805604]
[1740939842772,0.27866193,629.98,628.82,0.31805604]
[1740939843972,0.098,629.99,628.82,0.31805604]
[1740939844776,0.098,629.99,628.83,0.29186396]
[1740939844977,0.27886041,629.98,628.83,0.29186396]
[1740939845173,0.098,629.99,628.83,0.29186396]
[1740939845773,0.098,629.99,628.85,0.31804086]
[1740939845974,0.098,629.99,628.86,0.29186396]
[1740939846177,0.098,629.99,628.87,0.31803075]
[1740939846372,0.098,629.99,628.88,0.29186396]
[1740939846572,0.098,629.99,628.89,0.31802063]
[1740939846771,0.098,629.99,628.9,0.29186396]
[1740939846970,0.098,629.99,628.91,0.31801052]
[1740939847271,0.098,629.99,628.92,0.29186396]
[1740939847877,0.399,629.98,628.92,0.29186396]
[1740939848674,0.399,629.98,628.92,1.46833753]
[1740939848874,0.399,629.98,628.93,0.2917328]
[1740939849679,0.399,629.98,628.95,0.3179903]
[1740939849879,0.399,629.98,628.96,0.2917328]
[1740939850074,0.399,629.98,628.98,0.31797513]
[1740939850276,0.399,629.98,628.99,0.2917328]
[1740939850775,0.399,629.98,629.01,0.31795996]
[1740939850979,0.399,629.98,629.02,0.2917328]
[1740939851173,0.399,629.98,629.11,1.17647357]
[1740939851375,0.399,629.98,629.12,0.2917328]
[1740939851778,0.644,629.97,629.14,0.31789426]
[1740939851975,1.568,629.97,629.14,0.31789426]
[1740939852173,1.568,629.97,629.15,0.29166524]
[1740939852481,0.877,629.96,629.17,0.31787911]
[1740939852679,0.877,629.96,629.18,0.29166524]
[1740939852875,0.877,629.96,629.19,0.317869]
[1740939853175,0.877,629.96,629.2,0.29166524]
[1740939853479,0.877,629.96,629.21,0.3178589]
[1740939853680,0.877,629.96,629.22,0.29162925]
[1740939853883,0.877,629.96,629.23,0.31784879]
[1740939854082,0.877,629.96,629.24,0.29162925]
[1740939854381,0.877,629.96,629.25,0.31783869]
[1740939854580,0.877,629.96,629.26,0.29162925]
[1740939854885,0.608,629.95,629.25,0.31783869]
[1740939855082,0.608,629.95,629.26,0.29171101]
[1740939855677,1.22,629.95,629.26,0.29171101]
[1740939856278,1.22,629.95,629.25,0.31783869]
[1740939856475,1.22,629.95,629.26,0.29171968]
[1740939856975,1.22,629.95,629.25,0.31783869]
[1740939862985,1.22,629.95,629.26,0.29173275]
[1740939863587,1.22,629.95,629.27,0.29170986]
[1740939863888,1.22,629.95,629.28,0.29170986]
[1740939864083,1.22,629.95,629.26,0.29170986]
[1740939864288,1.22,629.95,629.27,0.29170986]
[1740939864586,1.318,629.95,629.28,0.29170986]
[1740939864786,1.318,629.95,629.26,0.29170986]
[1740939864985,1.318,629.95,629.27,0.29170986]
[1740939865180,1.318,629.95,629.28,0.29171535]
[1740939865381,1.318,629.95,629.29,0.29171535]
[1740939865580,1.318,629.95,629.26,0.29171535]
[1740939865885,1.318,629.95,629.27,0.29172318]
[1740939866186,1.318,629.95,629.25,0.31783869]
[1740939866386,1.318,629.95,629.26,0.29171836]
[1740939866984,1.318,629.95,629.25,0.31783869]
[1740939873092,2.197,629.95,629.25,0.31783869]
[1740939876897,2.596,629.95,629.25,0.31783869]
[1740939878500,2.596,629.95,629.26,0.29173349]
[1740939882596,2.596,629.95,629.27,0.29167152]
[1740939882801,2.596,629.95,629.28,0.29167152]
[1740939883002,3.267,629.95,629.26,0.29167152]
[1740939883299,3.267,629.95,629.27,0.60950011]
[1740939883504,3.267,629.95,629.28,0.29167152]
[1740939884698,3.267,629.95,629.29,0.31781849]
[1740939884902,3.267,629.95,629.3,0.29167152]
[1740939886005,3.267,629.95,629.31,0.31780839]
[1740939886205,3.267,629.95,629.32,0.29167152]
[1740939886408,4.168,629.95,629.33,0.31779829]
[1740939886605,4.168,629.95,629.34,0.29167152]
[1740939886799,4.168,629.95,629.35,0.31778819]
[1740939887000,2.85,629.95,629.36,0.29167152]
[1740939887200,2.85,629.95,629.35,0.31778819]
[1740939888008,2.85,629.95,629.36,0.29164608]
[1740939888907,2.85,629.95,629.35,0.31778819]
[1740939888908,2.451,629.95,629.37,0.2915692]
[1740939889102,2.451,629.95,629.38,0.2915692]
[1740939889310,2.451,629.95,629.39,0.2915692]
[1740939889508,2.451,629.95,629.36,0.2915692]
[1740939889809,2.451,629.95,629.37,0.2915692]
[1740939890003,2.451,629.95,629.36,0.2915692]
[1740939890205,2.451,629.95,629.37,0.2915692]
[1740939890404,2.451,629.95,629.38,0.2915692]
[1740939890600,2.451,629.95,629.36,0.2915692]
[1740939890800,2.451,629.95,629.37,0.2915692]
[1740939891003,2.451,629.95,629.48,1.17647357]
[1740939891208,2.451,629.95,629.49,0.60928671]
[1740939891406,2.451,629.95,629.5,0.60928167]
[1740939891602,2.451,629.95,629.51,0.31770742]
[1740939898406,2.451,629.95,629.52,0.29151197]
[1740939898609,2.451,629.95,629.53,0.31769732]
[1740939898908,2.451,629.95,629.54,0.29151197]
[1740939899110,2.451,629.95,629.55,0.31768723]
[1740939899409,2.451,629.95,629.56,0.29151197]
[1740939900310,2.451,629.95,629.57,0.31767714]
[1740939900503,2.451,629.95,629.58,0.29151197]
[1740939901308,2.451,629.95,629.57,0.31767714]
[1740939901510,2.451,629.95,629.59,0.29150627]
[1740939901707,2.451,629.95,629.6,0.29150627]
[1740939901907,2.451,629.95,629.61,0.29150627]
[1740939902110,1.572,629.95,629.58,0.29150627]
[1740939902307,1.572,629.95,629.59,0.60917332]
[1740939902506,1.572,629.95,629.6,0.29150627]
[1740939903108,1.572,629.95,629.61,0.29150627]
[1740939903311,1.572,629.95,629.62,0.29150627]
[1740939903510,0.89705232,629.95,629.63,0.29150627]
[1740939903712,0.89705232,629.95,629.64,0.29150627]
[1740939903912,0.89705232,629.95,629.65,0.29150627]
[1740939904214,0.89705232,629.95,629.66,0.29150627]
[1740939904517,0.89705232,629.95,629.67,0.29150627]
[1740939904810,0.89705232,629.95,629.59,0.31766705]
[1740939905014,0.89705232,629.95,629.6,0.29136684]
[1740939905210,0.89705232,629.95,629.61,0.29136684]
[1740939905407,0.89705232,629.95,629.62,0.29136684]
[1740939905611,0.89705232,629.95,629.59,0.31766705]
[1740939905612,0.89705232,629.95,629.63,0.29136684]
[1740939905808,0.89705232,629.95,629.64,0.29136684]
[1740939906014,0.89705232,629.95,629.65,0.29136684]
[1740939906214,0.89705232,629.95,629.59,0.31766705]
[1740939906215,0.89705232,629.95,629.66,0.29136684]
[1740939906409,0.89705232,629.95,629.59,0.31766705]
[1740939906410,0.89705232,629.95,629.67,0.29136684]
[1740939906610,0.89705232,629.95,629.59,0.31766705]
[1740939906916,0.89705232,629.95,629.6,0.29139195]
[1740939907115,0.89705232,629.95,629.59,0.31766705]
[1740939907410,0.89705232,629.95,629.6,0.29138997]
[1740939907809,0.89705232,629.95,629.61,0.29138997]
[1740939908012,0.89705232,629.95,629.59,0.31766705]
[1740939908212,0.89705232,629.95,629.6,0.29133076]
[1740939908608,0.89705232,629.95,629.61,0.29133076]
[1740939908814,0.89705232,629.95,629.62,0.29133076]
[1740939909010,0.89705232,629.95,629.63,0.29133076]
[1740939909316,0.89705232,629.95,629.64,0.29133076]
[1740939909617,0.89705232,629.95,629.65,0.29133076]
[1740939909812,0.89705232,629.95,629.66,0.29133076]
[1740939910013,0.89705232,629.95,629.6,0.29133076]
[1740939910209,0.89705232,629.95,629.61,0.29133076]
[1740939910416,0.89705232,629.95,629.62,0.29133076]
[1740939910615,0.89705232,629.95,629.63,0.29133076]
[1740939910814,0.89705232,629.95,629.64,0.29133076]
[1740939911015,0.89705232,629.95,629.65,0.29133076]
[1740939911215,0.89705232,629.95,629.6,0.29133076]
[1740939911517,0.89705232,629.95,629.61,0.29133076]
[1740939911817,0.89705232,629.95,629.62,0.29133076]
[1740939912018,0.89705232,629.95,629.6,0.29133076]
[1740939912210,1.335,630.13,629.61,0.29133076]
[1740939912409,1.335,630.13,629.62,0.29133076]
[1740939912614,1.335,630.13,629.63,0.29133076]
[1740939912811,1.335,630.13,629.64,0.29133076]
[1740939913014,1.335,630.13,629.65,0.29133076]
[1740939913213,1.335,630.13,629.66,0.29133076]
[1740939913416,0.72692069,630.21,629.71,1.17647357]
[1740939913616,0.72692069,630.21,629.72,0.29133076]
[1740939913913,0.72692069,630.21,629.73,0.29133076]
[1740939914115,0.72692069,630.21,629.74,0.29133076]
[1740939914317,0.72692069,630.21,629.75,0.29133076]
[1740939914517,0.72692069,630.21,629.76,0.28856551]
[1740939914717,0.72692069,630.21,629.77,0.28856551]
[1740939914918,0.72692069,630.21,629.78,0.60613672]
[1740939915113,0.72692069,630.21,629.79,0.28856551]
[1740939915319,0.72692069,630.21,629.8,0.28856551]
[1740939915519,0.72692069,630.21,629.81,0.28856551]
[1740939915719,0.72692069,630.21,629.82,0.28856551]
[1740939915920,0.72692069,630.21,629.83,0.28856551]
[1740939916115,0.72692069,630.21,629.84,0.28856551]
[1740939916314,0.72692069,630.21,629.85,0.28856551]
[1740939916519,0.72692069,630.21,629.86,0.28856551]
[1740939916821,0.72692069,630.21,629.96,1.17647357]
[1740939917017,0.72692069,630.21,629.97,0.28856551]
[1740939919321,0.72692069,630.21,629.98,0.28859734]
[1740939919519,0.72692069,630.21,629.99,0.28859734]
[1740939919820,0.72692069,630.21,630.0,0.28859734]
[1740939920023,0.72692069,630.21,630.01,0.28859734]
[1740939920217,0.72692069,630.21,630.02,0.28859734]
[1740939920723,0.72692069,630.21,630.03,0.28859734]
[1740939920923,0.72692069,630.21,630.04,0.28859734]
[1740939921122,0.72692069,630.21,630.05,0.28859734]
[1740939921324,0.72692069,630.21,630.06,0.28859734]
[1740939921530,0.38037625,630.21,630.07,0.28859734]
[1740939921725,0.38037625,630.21,630.08,0.28859734]
[1740939922026,0.38037625,630.21,630.09,0.28859734]
[1740939922218,0.38037625,630.21,630.1,0.28859734]
[1740939922422,0.38037625,630.21,630.11,0.28859734]
[1740939922722,0.38037625,630.21,630.12,0.60594531]
[1740939922924,0.38037625,630.21,630.13,0.60594027]
[1740939923150,0.38037625,630.21,630.14,0.28854545]
[1740939923324,0.38037625,630.21,630.15,0.28854545]
[1740939923523,0.38037625,630.21,630.16,0.28854545]
[1740939923724,0.38037625,630.21,630.13,0.31739482]
[1740939923725,0.38037625,630.21,630.17,0.28854545]
[1740939923925,0.38037625,630.21,630.18,0.28854545]
[1740939924126,0.38037625,630.21,630.19,0.28856111]
[1740939924326,0.38037625,630.21,630.14,0.28856111]
[1740939924628,0.38037625,630.21,630.15,0.28856111]
[1740939924828,0.098,630.22,630.16,0.60594082]
[1740939925127,0.098,630.22,630.17,0.28856111]
[1740939925330,0.098,630.22,630.18,0.28856111]
[1740939925627,0.66100028,630.27,630.19,0.28856111]
[1740939925928,0.66100028,630.27,630.2,0.28856111]
[1740939926125,0.66100028,630.27,630.21,0.28856111]
[1740939926322,0.66100028,630.27,630.22,0.28856111]
[1740939926521,0.66100028,630.27,630.17,0.28856111]
[1740939926728,0.66100028,630.27,630.18,0.60593075]
[1740939926931,0.66100028,630.27,630.19,0.28856111]
[1740939927222,0.66100028,630.27,630.2,0.31735956]
[1740939927422,0.66100028,630.27,630.21,0.27452122]
[1740939929630,0.66100028,630.27,630.26,1.17647357]
[1740939929829,0.66100028,630.27,630.26,1.45099479]
[1740939930426,0.66100028,630.27,630.26,1.17647357]
[1740939930628,0.66100028,630.27,630.26,1.45109894]
[1740939932123,0.66100028,630.27,630.26,1.45111359]
[1740939932533,0.66100028,630.27,630.26,0.27464002]
[1740939932732,0.66100028,630.27,630.21,0.27464002]
[1740939932929,0.66100028,630.27,630.22,0.59200931]
[1740939933129,0.66100028,630.27,630.23,0.59200428]
[1740939933429,0.66100028,630.27,630.24,0.27465982]
[1740939933630,0.66100028,630.27,630.25,0.31733439]
[1740939933829,0.66100028,630.27,630.26,0.27465982]
[1740939935728,0.66100028,630.27,630.25,0.31733439]
[1740939937628,0.896,630.88,630.25,0.31733439]
[1740939938527,0.896,630.88,630.26,0.27484556]
[1740939938734,0.896,630.88,630.25,0.31733439]
[1740939938929,0.896,630.88,630.26,0.27485129]
[1740939939136,0.896,630.88,630.25,0.31733439]
[1740939939333,0.896,630.88,630.26,0.2748345]
[1740939940132,0.896,630.88,630.25,0.31733439]
[1740939941734,0.635,630.87,630.25,0.31733439]
[1740939943932,0.2913837,630.86,630.25,0.31733439]
[1740939944835,0.29145217,630.85,630.25,0.31733439]
[1740939945036,0.29145217,630.84,630.25,0.31733439]
[1740939945237,0.29145217,630.86,630.25,0.31733439]
[1740939946534,0.29146381,630.85,630.25,0.31733439]
[1740939946733,0.29146381,630.84,630.25,0.31733439]
[1740939947033,0.635,630.87,630.25,0.31733439]
[1740939947034,0.29146381,630.83,630.25,0.31733439]
[1740939947232,0.635,630.87,630.25,0.31733439]
[1740939947436,0.29145173,630.86,630.25,0.31733439]
[1740939948032,0.29144296,630.85,630.25,0.31733439]
[1740939948231,0.29144296,630.84,630.25,0.31733439]
[1740939948436,0.29144296,630.86,630.25,0.31733439]
[1740939948639,0.29144296,630.85,630.25,0.31733439]
[1740939948838,0.29144296,630.84,630.25,0.31733439]
[1740939949034,0.29144296,630.86,630.25,0.31733439]
[1740939949233,0.29144296,630.85,630.25,0.31733439]
[1740939949637,0.29144296,630.84,630.25,0.31733439]
[1740939949940,0.29144296,630.83,630.25,0.31733439]
[1740939950141,0.29144296,630.86,630.25,0.31733439]
[1740939950440,0.29144296,630.85,630.25,0.31733439]
[1740939950640,0.29144296,630.86,630.25,0.31733439]
[1740939950835,0.29144296,630.85,630.25,0.31733439]
[1740939951039,0.29144296,630.84,630.25,0.31733439]
[1740939951235,0.29147894,630.83,630.25,0.31733439]
[1740939951541,0.29147894,630.82,630.25,0.31733439]
[1740939951742,0.29147894,630.86,630.25,0.31733439]
[1740939952041,0.635,630.87,630.25,0.31733439]
[1740939952242,0.29149259,630.86,630.25,0.31733439]
[1740939954342,1.519,630.87,630.25,0.31733439]
[1740939954544,0.29159488,630.86,630.25,0.31733439]
[1740939954744,0.29159488,630.85,630.25,0.31733439]
[1740939954944,0.29159488,630.86,630.25,0.31733439]
[1740939955145,0.29159488,630.85,630.25,0.31733439]
[1740939955340,1.519,630.87,630.25,0.31733439]
[1740939955539,0.29158131,630.86,630.25,0.31733439]
[1740939955944,0.29157292,630.85,630.25,0.31733439]
[1740939956148,0.29157292,630.86,629.38,1.6572415]
[1740939956348,0.29157292,630.85,629.39,0.27518019]
[1740939956548,0.3170376,630.84,629.4,0.31776294]
[1740939956747,0.29157292,630.83,629.41,0.27518019]
[1740939957548,0.29157644,630.82,629.42,0.27518138]
[1740939957744,0.29157644,630.81,629.43,0.27518138]
[1740939957949,0.29157644,630.83,629.4,0.31776294]
[1740939958152,0.29157644,630.82,629.4,0.31776294]
[1740939958348,0.29157644,630.81,629.4,0.31776294]
[1740939958545,0.29157644,630.83,629.4,0.31776294]
[1740939958748,0.29157644,630.82,629.4,0.31776294]
[1740939958949,0.29157644,630.83,629.4,0.31776294]
[1740939959152,0.29165665,630.82,629.4,0.31776294]
[1740939959451,0.29165665,630.81,629.4,0.31776294]
[1740939959654,0.29165665,630.8,629.4,0.31776294]
[1740939959951,0.29165665,630.79,629.4,0.31776294]
[1740939960152,0.29165665,630.78,629.41,0.27520215]
[1740939960352,0.29165665,630.77,629.41,0.27520215]
[1740939960553,0.29165665,630.77,629.4,0.31776294]
[1740939960754,0.29158313,630.76,629.41,0.27518802]
[1740939960955,0.29158313,630.83,629.41,0.27518802]
[1740939961154,0.29158313,630.82,629.41,0.27518802]
[1740939961355,0.29158313,630.81,629.41,0.27518802]
[1740939961556,0.29158313,630.83,629.41,0.27518802]
[1740939961954,0.29151332,630.82,629.42,0.27511864]
[1740939962156,0.29151332,630.82,629.41,0.27511864]
[1740939962357,0.29151332,630.82,629.42,0.27511864]
[1740939962556,0.29151332,630.82,629.41,0.27511864]
[1740939962756,0.29151332,630.82,629.42,0.27511864]
[1740939962958,0.29151332,630.82,629.43,0.27511864]
[1740939963251,0.29151332,630.82,629.41,0.27511864]
[1740939963451,0.29151332,630.82,629.4,0.31776294]
[1740939963452,0.29151563,630.81,629.42,0.27512121]
[1740939963655,0.29151563,630.82,629.43,0.27512121]
[1740939963858,0.29151563,630.81,629.44,0.27512121]
[1740939964059,0.29151563,630.81,629.4,0.31776294]
[1740939964060,0.29151563,630.82,629.41,0.27512121]
[1740939964258,0.29151563,630.81,629.42,0.27512121]
[1740939964558,0.29151563,630.8,629.43,0.27512121]
[1740939964855,0.29151563,630.79,629.44,0.27512121]
[1740939965052,0.829,630.83,629.41,0.27512121]
[1740939965053,0.29151563,630.82,629.41,0.27512121]
[1740939967561,0.829,630.83,628.93,1.17647357]
[1740939967562,0.29151563,630.81,629.42,0.31775285]
[1740939967760,0.3170577,630.8,629.43,0.27521775]
[1740939967963,0.29151563,630.79,629.43,0.27521775]
[1740939968160,0.31706775,630.78,629.43,0.27521775]
[1740939968360,0.29151563,630.77,629.42,0.31775285]
[1740939968557,0.31707781,630.76,629.42,0.31775285]
[1740939968758,0.29151563,630.75,629.42,0.31775285]
[1740939968958,0.29151563,630.74,629.42,0.31775285]
[1740939969162,0.29151563,630.73,629.42,0.31775285]
[1740939969362,0.29151563,630.72,629.42,0.31775285]
[1740939969656,0.29151563,630.75,629.42,0.31775285]
[1740939969855,0.29151563,630.74,629.42,0.31775285]
[1740939970058,0.29151563,630.73,629.42,0.31775285]
[1740939970258,0.29151563,630.72,629.42,0.31775285]
[1740939970454,0.29151563,630.71,629.42,0.31775285]
[1740939970663,0.29151563,630.7,629.42,0.31775285]
[1740939970861,0.29151563,630.75,629.42,0.31775285]
[1740939971056,0.29151563,630.74,629.42,0.31775285]
[1740939971259,0.29151563,630.73,629.42,0.31775285]
[1740939971455,0.29151563,630.72,629.42,0.31775285]
[1740939971863,0.29151563,630.71,629.42,0.31775285]
[1740939972068,0.6086236,630.7,629.42,0.31775285]
[1740939972268,0.60862863,630.69,629.42,0.31775285]
[1740939972566,0.29151563,630.68,629.42,0.31775285]
[1740939972762,0.29151563,630.67,629.42,0.31775285]
[1740939973067,0.60864371,630.66,629.42,0.31775285]
[1740939973267,0.29151563,630.65,629.42,0.31775285]
[1740939973561,0.831,630.67,629.42,0.31775285]
[1740939973562,0.60865377,630.64,629.42,0.31775285]
[1740939973766,0.29151563,630.63,629.42,0.31775285]
[1740939973966,0.29151563,630.62,629.42,0.31775285]
[1740939974168,0.29151563,630.61,629.42,0.31775285]
[1740939974368,0.31715826,630.6,629.42,0.31775285]
[1740939974567,0.29151563,630.59,629.42,0.31775285]
[1740939974769,0.31716832,630.58,629.42,0.31775285]
[1740939974965,0.29151563,630.57,629.42,0.31775285]
[1740939976268,0.29151563,630.57,629.1,1.65807059]
[1740939976767,0.29151563,630.57,629.1,1.65812326]
[1740939977364,0.708,630.57,629.1,1.65812326]
[1740939977562,0.29173263,630.56,629.1,1.65812326]
[1740939978568,0.31718341,630.55,629.1,1.65812326]
[1740939978769,0.29173263,630.54,629.1,1.65812326]
[1740939979069,0.29173263,630.54,629.11,0.27529644]
[1740939979468,0.29173263,630.54,629.12,0.31790437]
[1740939979865,0.29173263,630.54,629.13,0.27529496]
[1740939980666,0.914,630.53,629.13,0.27529496]
[1740939980875,0.29167965,630.52,629.14,0.27528365]
[1740939981067,0.29167965,630.52,629.12,0.31790437]
[1740939981068,0.29167965,630.52,629.13,0.27528365]
[1740939981277,0.29167965,630.52,629.15,0.27528365]
[1740939981670,0.29167965,630.52,629.14,0.27528365]
[1740939981975,0.29167965,630.52,629.16,0.27528365]
[1740939982170,0.29167965,630.52,629.17,0.27528365]
[1740939982369,0.914,630.53,629.17,0.27528365]
[1740939982577,0.914,630.53,629.18,0.27528365]
[1740939982876,0.914,630.53,629.13,1.93281054]
[1740939983076,0.914,630.53,629.14,0.27519566]
[1740939985277,0.914,630.53,629.14,1.17647357]
[1740939985678,0.914,630.53,629.15,0.27524257]
[1740939985679,0.291638,630.52,629.15,0.27524257]
[1740939987080,0.914,630.53,629.14,1.17647357]
[1740939987278,0.29164313,630.52,629.15,0.27524749]
[1740939988179,0.29164313,630.52,629.41,1.17647357]
[1740939989582,0.871,630.51,629.41,1.17647357]
[1740939989780,0.29164313,630.5,629.41,1.17647357]
[1740939991081,0.29164313,630.5,629.34,1.17647357]
[1740939994083,0.29164313,630.5,629.2,1.17647357]
[1740939996786,0.29164313,630.5,629.19,1.65777439]
[1740939997180,0.29173262,630.49,629.19,1.65777439]
[1740939997384,0.29173262,630.5,629.19,1.65777439]
[1740939997579,0.29173262,630.49,629.09,1.17647357]
[1740939997782,0.29173262,630.5,629.09,1.17647357]
[1740939997984,0.29173262,630.49,629.13,1.65799159]
[1740939998181,0.711,630.49,629.14,0.31789426]
[1740939998388,0.29173262,630.48,629.14,0.31789426]
[1740939998686,1.32273262,630.48,629.14,0.31789426]
[1740939998881,0.29173262,630.47,629.14,0.31789426]
[1740940002596,0.637,630.46,629.14,0.31789426]
[1740940002889,0.29173262,630.45,629.14,0.31789426]
[1740940003996,0.31723875,630.44,629.15,0.27535941]
[1740940004294,0.29173262,630.43,629.15,0.27535941]
[1740940004694,0.29176003,630.42,629.14,0.31789426]
[1740940004893,0.29178768,630.41,629.14,0.31789426]
[1740940005096,0.29178768,630.43,629.14,0.31789426]
[1740940005394,0.29178768,630.42,629.14,0.31789426]
[1740940005589,0.29178768,630.41,629.14,0.31789426]
[1740940005789,0.29178768,630.43,629.14,0.31789426]
[1740940006093,0.29178768,630.42,629.14,0.31789426]
[1740940006294,0.29181501,630.41,629.14,0.31789426]
[1740940006492,0.29181501,630.43,629.14,0.31789426]
[1740940006693,0.29181501,630.42,629.14,0.31789426]
[1740940006888,0.29181501,630.43,629.14,0.31789426]
[1740940007089,1.006,630.41,629.14,0.31789426]
[1740940007286,0.29181501,630.4,629.14,0.31789426]
[1740940007492,0.31726391,630.39,629.14,0.31789426]
[1740940007689,0.29181501,630.38,629.14,0.31789426]
[1740940007895,0.31727398,630.37,629.14,0.31789426]
[1740940008190,0.29181501,630.36,629.14,0.31789426]
[1740940009194,0.29181501,630.36,628.86,1.17647357]
[1740940009893,0.31728908,630.34,628.86,1.17647357]
[1740940010097,0.29181501,630.33,628.79,1.65884119]
[1740940010292,0.31730418,630.31,628.8,0.31806615]
[1740940010492,0.29181501,630.3,628.8,0.31806615]
[1740940011098,0.29189592,630.29,628.8,0.31806615]
[1740940011299,0.31731928,630.28,628.8,0.31806615]
[1740940011501,0.29189592,630.27,628.8,0.31806615]
[1740940011701,0.31732935,630.26,628.8,0.31806615]
[1740940011901,0.29189592,630.25,628.8,0.31806615]
[1740940012098,0.31733942,630.24,628.8,0.31806615]
[1740940012403,0.29189592,630.23,628.8,0.31806615]
[1740940012602,0.31734949,630.22,628.8,0.31806615]
[1740940012903,1.07289592,630.21,628.8,0.31806615]
[1740940013102,0.29189592,630.2,628.8,0.31806615]
[1740940013602,0.3173646,630.19,628.8,0.31806615]
[1740940013802,0.29189592,630.18,628.8,0.31806615]
[1740940015703,0.3173646,630.19,628.8,0.31806615]
[1740940015903,1.029,630.17,628.8,0.31806615]
[1740940016199,0.29188118,630.16,628.8,0.31806615]
[1740940017508,0.29187379,630.15,628.8,0.31806615]
[1740940017708,0.29187379,630.16,628.8,0.31806615]
[1740940017905,0.29187379,630.15,628.8,0.31806615]
[1740940018106,0.29187379,630.16,628.8,0.31806615]
[1740940018303,0.29187379,630.15,628.8,0.31806615]
[1740940018502,0.29187379,630.16,628.8,0.31806615]
[1740940018710,0.29187379,630.15,628.8,0.31806615]
[1740940018905,1.029,630.17,628.8,0.31806615]
[1740940018906,0.29187379,630.16,628.8,0.31806615]
[1740940020712,1.029,630.17,628.8,0.31806615]
[1740940021118,0.29185625,630.16,628.8,0.31806615]
[1740940021711,1.029,630.17,628.8,0.31806615]
[1740940021912,0.29188173,630.16,628.8,0.31806615]
[1740940022618,0.29188173,630.16,628.81,0.27545589]
[1740940023510,0.29188173,630.16,628.82,0.31805604]
[1740940023710,0.29188173,630.16,628.83,0.27545589]
[1740940023911,0.29188173,630.16,628.84,0.31804592]
[1740940024115,0.31738474,630.15,628.85,0.27545589]
[1740940024312,0.29188173,630.14,628.85,0.27545589]
[1740940024615,0.60927151,630.14,628.85,0.27545589]
[1740940024819,0.29188173,630.13,628.84,0.31804592]
[1740940025009,1.14989595,630.12,628.84,0.31804592]
[1740940025215,0.29189595,630.11,628.84,0.31804592]
[1740940026519,0.858,630.12,628.84,0.31804592]
[1740940026717,0.29194725,630.11,628.84,0.31804592]
[1740940027116,0.31740993,630.1,628.84,0.31804592]
[1740940027316,0.29194725,630.09,628.84,0.31804592]
[1740940028119,0.937,630.08,628.84,0.31804592]
[1740940028322,0.29201561,630.07,628.84,0.31804592]
[1740940029721,0.937,630.08,628.44,1.17647357]
[1740940029921,0.29207804,630.07,628.44,1.17647357]
[1740940030823,0.29207804,630.07,628.42,1.65979722]
[1740940031020,0.29207804,630.06,628.42,1.65979722]
[1740940031222,0.29207804,630.05,628.42,1.65979722]
[1740940031416,0.3174452,630.03,628.42,1.65979722]
[1740940031723,0.29211187,630.02,628.42,1.65979722]
[1740940032022,0.29211187,630.01,628.42,1.65979722]
[1740940032222,0.29211187,630.0,628.42,1.65979722]
[1740940032419,0.31747039,629.98,628.43,0.27568191]
[1740940032626,0.29211187,629.97,628.44,0.31824836]
[1740940032922,0.29211187,629.97,628.45,0.27568191]
[1740940034525,0.31747039,629.98,628.44,0.31824836]